[Event "ONJK 2023 U25"]
[Site "Dieren, Netherlands"]
[Date "2023.08.04"]
[Round "1.1"]
[White "Baselmans, Luuk"]
[Black "Van Dam, Thijs"]
[Result "1-0"]
[TimeControl "90min + 30sec/zet"]
[WhiteElo "2338"]
[BlackElo "1919"]

1. e4 {[%clk 01:30:57]} {[%emt 00:00:02]} c5 {[%clk 01:30:54]} {[%emt
00:00:07]} 2. Nf3 {[%clk 01:31:22]} {[%emt 00:00:05]} g6 {[%clk 01:31:18]}
{[%emt 00:00:06]} 3. c3 {[%clk 01:31:33]} {[%emt 00:00:19]} d5 {[%clk
01:31:37]} {[%emt 00:00:11]} 4. e5 {[%clk 01:31:47]} {[%emt 00:00:15]} Nc6
{[%clk 01:31:43]} {[%emt 00:00:24]} 5. d4 {[%clk 01:31:15]} {[%emt 00:01:03]}
cxd4 {[%clk 01:32:00]} {[%emt 00:00:13]} 6. cxd4 {[%clk 01:31:39]} {[%emt
00:00:06]} Bg4 {[%clk 01:32:21]} {[%emt 00:00:08]} 7. Bb5 {[%clk 01:27:59]}
{[%emt 00:04:11]} Qb6 {[%clk 01:30:30]} {[%emt 00:02:22]} 8. Bxc6+ {[%clk
01:27:20]} {[%emt 00:01:09]} bxc6 {[%clk 01:24:45]} {[%emt 00:06:15]} 9. Nbd2
{[%clk 01:26:39]} {[%emt 00:01:10]} Bg7 {[%clk 01:21:33]} {[%emt 00:03:43]} 10.
h3 {[%clk 01:26:37]} {[%emt 00:00:32]} Bxf3 {[%clk 01:21:54]} {[%emt 00:00:09]}
11. Nxf3 {[%clk 01:27:01]} {[%emt 00:00:06]} Nh6 {[%clk 01:21:49]} {[%emt
00:00:36]} 12. O-O {[%clk 01:25:59]} {[%emt 00:01:31]} O-O {[%clk 01:21:48]}
{[%emt 00:00:30]} 13. b3 {[%clk 01:18:56]} {[%emt 00:07:34]} c5 {[%clk
01:18:35]} {[%emt 00:03:43]} 14. Bf4 {[%clk 01:14:02]} {[%emt 00:05:24]} c4
{[%clk 00:53:39]} {[%emt 00:25:27]} 15. bxc4 {[%clk 01:09:52]} {[%emt
00:04:40]} dxc4 {[%clk 00:53:36]} {[%emt 00:00:33]} 16. Qd2 {[%clk 01:06:45]}
{[%emt 00:03:37]} c3 {[%clk 00:49:02]} {[%emt 00:05:05]} 17. Qxc3 {[%clk
01:06:48]} {[%emt 00:00:26]} e6 {[%clk 00:47:03]} {[%emt 00:02:28]} 18. Rab1
{[%clk 01:03:10]} {[%emt 00:04:08]} Qa6 {[%clk 00:46:49]} {[%emt 00:00:44]} 19.
Qd2 {[%clk 01:02:10]} {[%emt 00:01:29]} Nf5 {[%clk 00:47:02]} {[%emt 00:00:17]}
20. Bg5 {[%clk 01:01:20]} {[%emt 00:01:21]} Rfe8 {[%clk 00:44:39]} {[%emt
00:02:53]} 21. Rb3 {[%clk 00:58:49]} {[%emt 00:03:01]} Ne7 {[%clk 00:43:49]}
{[%emt 00:01:20]} 22. Bxe7 {[%clk 00:58:45]} {[%emt 00:00:34]} Rxe7 {[%clk
00:44:11]} {[%emt 00:00:09]} 23. Rfb1 {[%clk 00:57:25]} {[%emt 00:01:50]} Rd8
{[%clk 00:43:29]} {[%emt 00:01:12]} 24. Rb8 {[%clk 00:54:37]} {[%emt 00:03:18]}
Ree8 {[%clk 00:43:08]} {[%emt 00:00:51]} 25. R8b7 {[%clk 00:54:53]} {[%emt
00:00:15]} Qa4 {[%clk 00:35:20]} {[%emt 00:08:18]} 26. R1b4 {[%clk 00:50:32]}
{[%emt 00:04:51]} Qa5 {[%clk 00:35:15]} {[%emt 00:00:35]} 27. Qf4 {[%clk
00:50:37]} {[%emt 00:00:25]} Rf8 {[%clk 00:35:05]} {[%emt 00:00:39]} 28. a4
{[%clk 00:50:23]} {[%emt 00:00:44]} Rc8 {[%clk 00:33:22]} {[%emt 00:02:14]} 29.
h4 {[%clk 00:45:00]} {[%emt 00:05:53]} Rc7 {[%clk 00:33:22]} {[%emt 00:00:30]}
30. h5 {[%clk 00:40:49]} {[%emt 00:04:41]} Rfc8 {[%clk 00:30:37]} {[%emt
00:03:15]} 31. Rb8 {[%clk 00:40:08]} {[%emt 00:01:11]} Qa6 {[%clk 00:29:42]}
{[%emt 00:01:25]} 32. hxg6 {[%clk 00:35:43]} {[%emt 00:04:54]} hxg6 {[%clk
00:29:49]} {[%emt 00:00:24]} 33. d5 {[%clk 00:33:48]} {[%emt 00:02:25]} exd5
{[%clk 00:28:31]} {[%emt 00:01:48]} 34. e6 {[%clk 00:34:05]} {[%emt 00:00:12]}
Bf8 {[%clk 00:28:29]} {[%emt 00:00:32]} 35. Rxc8 {[%clk 00:24:58]} {[%emt
00:09:38]} Qxc8 {[%clk 00:28:29]} {[%emt 00:00:30]} 36. Rb1 {[%clk 00:24:46]}
{[%emt 00:00:42]} fxe6 {[%clk 00:27:23]} {[%emt 00:01:36]} 37. Nh4 {[%clk
00:20:26]} {[%emt 00:04:50]} Rf7 {[%clk 00:23:29]} {[%emt 00:04:23]} 38. Qg4
{[%clk 00:18:54]} {[%emt 00:02:03]} Qc2 {[%clk 00:22:11]} {[%emt 00:01:49]} 39.
Rf1 {[%clk 00:16:53]} {[%emt 00:02:31]} Bc5 {[%clk 00:18:22]} {[%emt 00:04:19]}
40. Nf3 {[%clk 00:15:57]} {[%emt 00:01:26]} Qf5 {[%clk 00:18:10]} {[%emt
00:00:41]} 41. Qg3 {[%clk 00:16:20]} {[%emt 00:00:07]} Kg7 {[%clk 00:15:51]}
{[%emt 00:02:49]} 42. Ng5 {[%clk 00:14:53]} {[%emt 00:01:57]} Rb7 {[%clk
00:14:17]} {[%emt 00:02:05]} 43. Qc3+ {[%clk 00:14:04]} {[%emt 00:01:19]} e5
{[%clk 00:13:22]} {[%emt 00:01:24]} 44. Qxc5 {[%clk 00:14:22]} {[%emt
00:00:12]} Qxg5 {[%clk 00:13:41]} {[%emt 00:00:11]} 45. Qxd5 {[%clk 00:14:47]}
{[%emt 00:00:05]} Re7 {[%clk 00:13:09]} {[%emt 00:01:02]} 46. g3 {[%clk
00:12:04]} {[%emt 00:03:13]} Qf5 {[%clk 00:13:03]} {[%emt 00:00:35]} 47. Re1
{[%clk 00:12:09]} {[%emt 00:00:26]} e4 {[%clk 00:12:05]} {[%emt 00:01:28]} 48.
Qd4+ {[%clk 00:12:33]} {[%emt 00:00:06]} Kh7 {[%clk 00:11:36]} {[%emt
00:00:59]} 49. Re3 {[%clk 00:09:29]} {[%emt 00:03:34]} Qg4 {[%clk 00:09:40]}
{[%emt 00:02:25]} 50. Kg2 {[%clk 00:09:33]} {[%emt 00:00:27]} Qf5 {[%clk
00:09:55]} {[%emt 00:00:15]} 51. Qb4 {[%clk 00:09:40]} {[%emt 00:00:23]} Rf7
{[%clk 00:09:56]} {[%emt 00:00:30]} 52. Qb2 {[%clk 00:09:55]} {[%emt 00:00:15]}
a5 {[%clk 00:07:42]} {[%emt 00:02:44]} 53. g4 {[%clk 00:09:21]} {[%emt
00:01:04]} Qf6 {[%clk 00:06:19]} {[%emt 00:01:53]} 54. Qxf6 {[%clk 00:08:56]}
{[%emt 00:00:55]} Rxf6 {[%clk 00:06:42]} {[%emt 00:00:07]} 55. Rxe4 {[%clk
00:09:23]} {[%emt 00:00:03]} Rb6 {[%clk 00:06:57]} {[%emt 00:00:15]} 56. f4
{[%clk 00:08:36]} {[%emt 00:01:17]} Rb3 {[%clk 00:05:33]} {[%emt 00:01:54]} 57.
Re5 {[%clk 00:05:37]} {[%emt 00:03:29]} Rb4 {[%clk 00:05:51]} {[%emt 00:00:12]}
58. Rxa5 {[%clk 00:06:02]} {[%emt 00:00:05]} Rxf4 {[%clk 00:06:11]} {[%emt
00:00:08]} 59. g5 {[%clk 00:05:49]} {[%emt 00:00:44]} Kg7 {[%clk 00:06:02]}
{[%emt 00:00:39]} 60. Kg3 {[%clk 00:06:13]} {[%emt 00:00:06]} Rb4 {[%clk
00:06:21]} {[%emt 00:00:10]} 61. Kf3 {[%clk 00:06:24]} {[%emt 00:00:20]} Kf7
{[%clk 00:05:17]} {[%emt 00:01:34]} 62. Ra6 {[%clk 00:06:36]} {[%emt 00:00:19]}
Kg7 {[%clk 00:05:30]} {[%emt 00:00:15]} 63. Ra7+ {[%clk 00:04:55]} {[%emt
00:02:12]} Kf8 {[%clk 00:05:30]} {[%emt 00:00:30]} 64. a5 {[%clk 00:04:19]}
{[%emt 00:01:06]} Ra4 {[%clk 00:05:52]} {[%emt 00:00:08]} 65. a6 {[%clk
00:04:41]} {[%emt 00:00:08]} Kg8 {[%clk 00:06:04]} {[%emt 00:00:16]} 66. Ke3
{[%clk 00:04:57]} {[%emt 00:00:15]} Rg4 {[%clk 00:05:27]} {[%emt 00:01:07]} 67.
Rb7 {[%clk 00:05:12]} {[%emt 00:00:15]} 1-0

[Event "ONJK 2023 U25"]
[Site "Dieren, Netherlands"]
[Date "2023.08.04"]
[Round "1.2"]
[White "Guillaumond, Matthieu"]
[Black "Boudry, William"]
[Result "1-0"]
[TimeControl "90min + 30sec/zet"]
[WhiteElo "1856"]
[BlackElo "2084"]

1. e4 {[%clk 01:30:57]} {[%emt 00:00:02]} c5 {[%clk 01:30:41]} {[%emt
00:00:20]} 2. c3 {[%clk 01:31:13]} {[%emt 00:00:14]} d5 {[%clk 01:30:05]}
{[%emt 00:01:07]} 3. exd5 {[%clk 01:31:20]} {[%emt 00:00:24]} Qxd5 {[%clk
01:30:29]} {[%emt 00:00:05]} 4. d4 {[%clk 01:31:40]} {[%emt 00:00:09]} Nc6
{[%clk 01:30:41]} {[%emt 00:00:19]} 5. Nf3 {[%clk 01:31:58]} {[%emt 00:00:13]}
Bf5 {[%clk 01:30:37]} {[%emt 00:00:34]} 6. dxc5 {[%clk 01:26:02]} {[%emt
00:06:25]} Qxd1+ {[%clk 01:29:29]} {[%emt 00:01:38]} 7. Kxd1 {[%clk 01:25:45]}
{[%emt 00:00:49]} O-O-O+ {[%clk 01:29:55]} {[%emt 00:00:03]} 8. Ke1 {[%clk
01:25:22]} {[%emt 00:00:52]} e5 {[%clk 01:28:43]} {[%emt 00:01:42]} 9. b4
{[%clk 01:23:37]} {[%emt 00:02:15]} e4 {[%clk 01:28:22]} {[%emt 00:00:51]} 10.
Nfd2 {[%clk 01:23:15]} {[%emt 00:00:51]} Ne5 {[%clk 01:26:30]} {[%emt
00:02:23]} 11. Nc4 {[%clk 01:22:19]} {[%emt 00:01:25]} Nd3+ {[%clk 01:24:19]}
{[%emt 00:02:41]} 12. Bxd3 {[%clk 01:20:47]} {[%emt 00:02:02]} exd3 {[%clk
01:24:44]} {[%emt 00:00:05]} 13. Bg5 {[%clk 01:14:12]} {[%emt 00:07:05]} Re8+
{[%clk 01:23:09]} {[%emt 00:02:05]} 14. Ne3 {[%clk 01:14:13]} {[%emt 00:00:29]}
h6 {[%clk 01:22:40]} {[%emt 00:00:59]} 15. Bh4 {[%clk 01:09:53]} {[%emt
00:04:49]} g5 {[%clk 01:21:13]} {[%emt 00:01:58]} 16. Bg3 {[%clk 01:10:18]}
{[%emt 00:00:06]} Nf6 {[%clk 01:20:37]} {[%emt 00:01:05]} 17. Kd1 {[%clk
01:09:32]} {[%emt 00:01:16]} Bd7 {[%clk 01:17:56]} {[%emt 00:03:07]} 18. Kd2
{[%clk 01:05:38]} {[%emt 00:04:27]} Ne4+ {[%clk 01:15:38]} {[%emt 00:02:49]} 19.
Kxd3 {[%clk 01:03:24]} {[%emt 00:02:45]} f5 {[%clk 01:14:43]} {[%emt 00:01:24]}
20. f3 {[%clk 01:02:59]} {[%emt 00:00:54]} Bb5+ {[%clk 01:14:45]} {[%emt
00:00:30]} 21. c4 {[%clk 01:01:50]} {[%emt 00:01:37]} Rd8+ {[%clk 01:12:48]}
{[%emt 00:02:28]} 22. Ke2 {[%clk 00:57:06]} {[%emt 00:05:13]} Nxg3+ {[%clk
01:11:48]} {[%emt 00:01:31]} 23. hxg3 {[%clk 00:57:29]} {[%emt 00:00:06]} Bg7
{[%clk 01:11:37]} {[%emt 00:00:42]} 24. cxb5 {[%clk 00:53:02]} {[%emt
00:04:57]} Rhe8 {[%clk 01:10:42]} {[%emt 00:01:25]} 25. Nd2 {[%clk 00:49:29]}
{[%emt 00:04:01]} Bxa1 {[%clk 01:07:06]} {[%emt 00:04:08]} 26. Rxa1 {[%clk
00:49:51]} {[%emt 00:00:08]} Rd4 {[%clk 01:06:47]} {[%emt 00:00:49]} 27. Nb3
{[%clk 00:47:26]} {[%emt 00:02:55]} Rxb4 {[%clk 01:04:48]} {[%emt 00:02:29]} 28.
Kf2 {[%clk 00:47:00]} {[%emt 00:00:56]} Re5 {[%clk 01:04:08]} {[%emt 00:01:10]}
29. Rd1 {[%clk 00:42:07]} {[%emt 00:05:23]} h5 {[%clk 01:01:16]} {[%emt
00:03:23]} 30. Rd2 {[%clk 00:36:20]} {[%emt 00:06:15]} h4 {[%clk 00:59:07]}
{[%emt 00:02:40]} 31. g4 {[%clk 00:33:29]} {[%emt 00:03:20]} fxg4 {[%clk
00:58:17]} {[%emt 00:01:21]} 32. Nxg4 {[%clk 00:33:44]} {[%emt 00:00:15]} Rf5
{[%clk 00:58:11]} {[%emt 00:00:35]} 33. Ke3 {[%clk 00:29:05]} {[%emt 00:05:11]}
Rf8 {[%clk 00:54:17]} {[%emt 00:04:23]} 34. Nd4 {[%clk 00:20:32]} {[%emt
00:09:01]} Rd8 {[%clk 00:52:15]} {[%emt 00:02:34]} 35. Nf6 {[%clk 00:19:14]}
{[%emt 00:01:43]} Ra4 {[%clk 00:51:42]} {[%emt 00:01:08]} 36. Ne4 {[%clk
00:19:23]} {[%emt 00:00:21]} Ra3+ {[%clk 00:52:03]} {[%emt 00:00:09]} 37. Kf2
{[%clk 00:19:23]} {[%emt 00:00:29]} g4 {[%clk 00:51:32]} {[%emt 00:01:01]} 38.
fxg4 {[%clk 00:16:41]} {[%emt 00:03:12]} Rf8+ {[%clk 00:51:17]} {[%emt
00:00:45]} 39. Nf5 {[%clk 00:16:53]} {[%emt 00:00:18]} Kc7 {[%clk 00:49:53]}
{[%emt 00:01:55]} 40. Ng5 {[%clk 00:15:11]} {[%emt 00:02:11]} Rf6 {[%clk
00:49:52]} {[%emt 00:00:31]} 41. Nf3 {[%clk 00:14:37]} {[%emt 00:01:04]} Rc3
{[%clk 00:49:23]} {[%emt 00:01:00]} 42. N5xh4 {[%clk 00:13:56]} {[%emt
00:01:11]} Rxc5 {[%clk 00:48:44]} {[%emt 00:01:09]} 43. a4 {[%clk 00:12:55]}
{[%emt 00:01:30]} Rf4 {[%clk 00:48:00]} {[%emt 00:01:12]} 44. Kg3 {[%clk
00:10:31]} {[%emt 00:02:55]} Rcc4 {[%clk 00:46:40]} {[%emt 00:01:50]} 45. g5
{[%clk 00:09:22]} {[%emt 00:01:39]} Rxa4 {[%clk 00:46:50]} {[%emt 00:00:20]} 46.
g6 {[%clk 00:08:14]} {[%emt 00:01:38]} Rae4 {[%clk 00:45:04]} {[%emt 00:02:15]}
47. Rd5 {[%clk 00:06:46]} {[%emt 00:01:58]} Rg4+ {[%clk 00:44:58]} {[%emt
00:00:37]} 48. Kh3 {[%clk 00:06:54]} {[%emt 00:00:21]} Kb6 {[%clk 00:45:03]}
{[%emt 00:00:26]} 49. g3 {[%clk 00:05:58]} {[%emt 00:01:25]} Rb4 {[%clk
00:44:24]} {[%emt 00:01:10]} 50. Ng5 {[%clk 00:05:02]} {[%emt 00:01:26]} Rgc4
{[%clk 00:44:46]} {[%emt 00:00:08]} 51. g7 {[%clk 00:04:57]} {[%emt 00:00:35]}
Rc8 {[%clk 00:45:12]} {[%emt 00:00:04]} 52. Rf5 {[%clk 00:05:14]} {[%emt
00:00:12]} Rg8 {[%clk 00:45:20]} {[%emt 00:00:23]} 53. Ne6 {[%clk 00:05:36]}
{[%emt 00:00:08]} Rxb5 {[%clk 00:45:28]} {[%emt 00:00:23]} 54. Rf8 {[%clk
00:05:53]} {[%emt 00:00:12]} Rxg7 {[%clk 00:45:24]} {[%emt 00:00:34]} 55. Nxg7
{[%clk 00:06:16]} {[%emt 00:00:07]} a5 {[%clk 00:45:50]} {[%emt 00:00:04]} 56.
Ra8 {[%clk 00:06:20]} {[%emt 00:00:25]} Re5 {[%clk 00:46:18]} {[%emt 00:00:03]}
57. Ngf5 {[%clk 00:06:27]} {[%emt 00:00:22]} Kb5 {[%clk 00:46:15]} {[%emt
00:00:33]} 58. g4 {[%clk 00:06:37]} {[%emt 00:00:20]} Kb4 {[%clk 00:46:42]}
{[%emt 00:00:03]} 59. g5 {[%clk 00:06:37]} {[%emt 00:00:30]} Re6 {[%clk
00:47:09]} {[%emt 00:00:04]} 60. g6 {[%clk 00:05:58]} {[%emt 00:01:09]} Rxg6
{[%clk 00:47:01]} {[%emt 00:00:38]} 61. Nxg6 {[%clk 00:06:13]} {[%emt
00:00:14]} a4 {[%clk 00:47:30]} {[%emt 00:00:02]} 62. Nd4 {[%clk 00:06:08]}
{[%emt 00:00:35]} b5 {[%clk 00:47:37]} {[%emt 00:00:23]} 63. Ne5 {[%clk
00:06:00]} {[%emt 00:00:38]} Kc5 {[%clk 00:47:56]} {[%emt 00:00:11]} 64. Nc2
{[%clk 00:06:14]} {[%emt 00:00:15]} Kd5 {[%clk 00:48:21]} {[%emt 00:00:06]} 65.
Nd3 {[%clk 00:06:32]} {[%emt 00:00:12]} Kc4 {[%clk 00:48:50]} {[%emt 00:00:01]}
66. Ndb4 {[%clk 00:06:49]} {[%emt 00:00:12]} 1-0

[Event "ONJK 2023 U25"]
[Site "Dieren, Netherlands"]
[Date "2023.08.04"]
[Round "1.3"]
[White "Faybish, Benjamin"]
[Black "Swennen, Fleur"]
[Result "1-0"]
[TimeControl "90min + 30sec/zet"]
[WhiteElo "2064"]
[BlackElo "1851"]

1. d4 {[%clk 01:30:57]} {[%emt 00:00:01]} f5 {[%clk 01:30:49]} {[%emt
00:00:12]} 2. Nf3 {[%clk 01:30:37]} {[%emt 00:00:50]} Nf6 {[%clk 01:30:42]}
{[%emt 00:00:37]} 3. g3 {[%clk 01:30:45]} {[%emt 00:00:23]} e6 {[%clk
01:30:57]} {[%emt 00:00:15]} 4. Bg2 {[%clk 01:31:09]} {[%emt 00:00:05]} Be7
{[%clk 01:31:01]} {[%emt 00:00:25]} 5. O-O {[%clk 01:31:30]} {[%emt 00:00:09]}
O-O {[%clk 01:31:04]} {[%emt 00:00:27]} 6. c4 {[%clk 01:31:43]} {[%emt
00:00:18]} d6 {[%clk 01:31:11]} {[%emt 00:00:23]} 7. b3 {[%clk 01:30:10]}
{[%emt 00:02:04]} Ne4 {[%clk 01:26:51]} {[%emt 00:04:50]} 8. Nfd2 {[%clk
01:27:23]} {[%emt 00:03:16]} Nxd2 {[%clk 01:25:03]} {[%emt 00:02:18]} 9. Nxd2
{[%clk 01:27:34]} {[%emt 00:00:19]} Bf6 {[%clk 01:19:56]} {[%emt 00:05:36]} 10.
Bb2 {[%clk 01:27:41]} {[%emt 00:00:23]} e5 {[%clk 01:08:04]} {[%emt 00:12:23]}
11. e3 {[%clk 01:21:25]} {[%emt 00:06:46]} Nc6 {[%clk 00:56:12]} {[%emt
00:12:22]} 12. Nf3 {[%clk 01:14:55]} {[%emt 00:07:00]} Qe8 {[%clk 00:51:16]}
{[%emt 00:05:26]} 13. a3 {[%clk 01:10:39]} {[%emt 00:04:45]} Kh8 {[%clk
00:39:05]} {[%emt 00:12:40]} 14. b4 {[%clk 01:05:53]} {[%emt 00:05:17]} f4
{[%clk 00:31:31]} {[%emt 00:08:04]} 15. exf4 {[%clk 00:56:03]} {[%emt
00:10:20]} exf4 {[%clk 00:30:29]} {[%emt 00:01:31]} 16. b5 {[%clk 00:55:03]}
{[%emt 00:01:30]} Nd8 {[%clk 00:28:38]} {[%emt 00:02:21]} 17. Nd2 {[%clk
00:54:29]} {[%emt 00:01:04]} Ne6 {[%clk 00:25:34]} {[%emt 00:03:35]} 18. Ne4
{[%clk 00:44:42]} {[%emt 00:10:16]} Ng5 {[%clk 00:20:21]} {[%emt 00:05:44]} 19.
Nxf6 {[%clk 00:28:28]} {[%emt 00:16:43]} Rxf6 {[%clk 00:20:36]} {[%emt
00:00:15]} 20. d5 {[%clk 00:28:16]} {[%emt 00:00:42]} Rf5 {[%clk 00:14:45]}
{[%emt 00:06:21]} 21. h4 {[%clk 00:19:19]} {[%emt 00:09:27]} f3 {[%clk
00:11:25]} {[%emt 00:03:51]} 22. Bh1 {[%clk 00:18:19]} {[%emt 00:01:29]} Nh3+
{[%clk 00:09:21]} {[%emt 00:02:33]} 23. Kh2 {[%clk 00:18:42]} {[%emt 00:00:07]}
Qf7 {[%clk 00:08:44]} {[%emt 00:01:08]} 24. Qd4 {[%clk 00:16:01]} {[%emt
00:03:11]} Bd7 {[%clk 00:07:16]} {[%emt 00:01:58]} 25. Rae1 {[%clk 00:07:13]}
{[%emt 00:09:17]} Rh5 {[%clk 00:04:26]} {[%emt 00:03:20]} 26. Qxg7+ {[%clk
00:06:23]} {[%emt 00:01:20]} Qxg7 {[%clk 00:04:48]} {[%emt 00:00:09]} 27. Bxg7+
{[%clk 00:06:49]} {[%emt 00:00:04]} Kg8 {[%clk 00:03:11]} {[%emt 00:02:07]} 28.
Bxf3 {[%clk 00:03:32]} {[%emt 00:03:47]} Rf5 {[%clk 00:03:28]} {[%emt
00:00:12]} 29. Bg4 {[%clk 00:03:27]} {[%emt 00:00:35]} Rxf2+ {[%clk 00:03:10]}
{[%emt 00:00:48]} 30. Rxf2 {[%clk 00:03:50]} {[%emt 00:00:07]} Nxf2 {[%clk
00:02:48]} {[%emt 00:00:52]} 31. Bxd7 {[%clk 00:04:10]} {[%emt 00:00:10]} Kxg7
{[%clk 00:03:03]} {[%emt 00:00:14]} 32. Re7+ {[%clk 00:04:16]} {[%emt
00:00:24]} Kg6 {[%clk 00:02:57]} {[%emt 00:00:37]} 33. g4 {[%clk 00:03:49]}
{[%emt 00:00:57]} h5 {[%clk 00:02:12]} {[%emt 00:01:15]} 34. Be8+ {[%clk
00:03:35]} {[%emt 00:00:43]} Rxe8 {[%clk 00:01:03]} {[%emt 00:01:39]} 35. gxh5+
{[%clk 00:03:17]} {[%emt 00:00:48]} Kxh5 {[%clk 00:01:16]} {[%emt 00:00:17]} 36.
Rxe8 {[%clk 00:03:44]} {[%emt 00:00:03]} Ng4+ {[%clk 00:01:11]} {[%emt
00:00:35]} 37. Kg3 {[%clk 00:04:00]} {[%emt 00:00:13]} Ne5 {[%clk 00:01:29]}
{[%emt 00:00:13]} 38. Rxe5+ {[%clk 00:03:14]} {[%emt 00:01:15]} dxe5 {[%clk
00:01:54]} {[%emt 00:00:06]} 39. Kf3 {[%clk 00:03:41]} {[%emt 00:00:03]} Kxh4
{[%clk 00:01:52]} {[%emt 00:00:32]} 40. Ke4 {[%clk 00:04:07]} {[%emt 00:00:04]}
Kg4 {[%clk 00:01:37]} {[%emt 00:00:45]} 41. Kxe5 {[%clk 00:04:27]} {[%emt
00:00:09]} 1-0

[Event "ONJK 2023 U25"]
[Site "Dieren, Netherlands"]
[Date "2023.08.05"]
[Round "2.1"]
[White "Verheul, Job"]
[Black "Baselmans, Luuk"]
[Result "0-1"]
[TimeControl "90min + 30sec/zet"]
[WhiteElo "1952"]
[BlackElo "2338"]

1. e4 {[%clk 01:30:44]} {[%emt 00:00:16]} e6 {[%clk 01:30:53]} {[%emt
00:00:07]} 2. d4 {[%clk 01:31:01]} {[%emt 00:00:13]} d5 {[%clk 01:31:17]}
{[%emt 00:00:06]} 3. Nd2 {[%clk 01:31:04]} {[%emt 00:00:26]} c5 {[%clk
01:31:12]} {[%emt 00:00:36]} 4. exd5 {[%clk 01:30:50]} {[%emt 00:00:43]} Qxd5
{[%clk 01:31:34]} {[%emt 00:00:09]} 5. Ngf3 {[%clk 01:31:10]} {[%emt 00:00:10]}
cxd4 {[%clk 01:31:41]} {[%emt 00:00:23]} 6. Bc4 {[%clk 01:31:24]} {[%emt
00:00:14]} Qd7 {[%clk 01:32:01]} {[%emt 00:00:11]} 7. O-O {[%clk 01:30:54]}
{[%emt 00:01:00]} Nc6 {[%clk 01:32:03]} {[%emt 00:00:29]} 8. Nb3 {[%clk
01:30:36]} {[%emt 00:00:47]} a6 {[%clk 01:32:05]} {[%emt 00:00:28]} 9. Nbxd4
{[%clk 01:30:52]} {[%emt 00:00:14]} Nxd4 {[%clk 01:32:27]} {[%emt 00:00:08]} 10.
Qxd4 {[%clk 01:30:49]} {[%emt 00:00:33]} Qxd4 {[%clk 01:30:19]} {[%emt
00:02:39]} 11. Nxd4 {[%clk 01:31:04]} {[%emt 00:00:15]} Nf6 {[%clk 01:26:38]}
{[%emt 00:04:11]} 12. Be2 {[%clk 01:26:33]} {[%emt 00:05:01]} Be7 {[%clk
01:21:46]} {[%emt 00:05:22]} 13. Bf4 {[%clk 01:19:53]} {[%emt 00:07:10]} O-O
{[%clk 01:10:43]} {[%emt 00:11:33]} 14. Bf3 {[%clk 01:18:25]} {[%emt 00:01:57]}
Nd7 {[%clk 01:10:17]} {[%emt 00:00:57]} 15. Nb3 {[%clk 01:06:35]} {[%emt
00:12:20]} e5 {[%clk 01:06:54]} {[%emt 00:03:54]} 16. Rfe1 {[%clk 00:49:32]}
{[%emt 00:17:32]} f5 {[%clk 00:54:30]} {[%emt 00:12:53]} 17. Bxe5 {[%clk
00:44:56]} {[%emt 00:05:07]} Nxe5 {[%clk 00:54:51]} {[%emt 00:00:09]} 18. Rxe5
{[%clk 00:45:18]} {[%emt 00:00:08]} Bf6 {[%clk 00:55:15]} {[%emt 00:00:06]} 19.
Bd5+ {[%clk 00:44:48]} {[%emt 00:00:59]} Kh8 {[%clk 00:55:37]} {[%emt
00:00:08]} 20. Re2 {[%clk 00:44:36]} {[%emt 00:00:42]} Bxb2 {[%clk 00:36:55]}
{[%emt 00:19:14]} 21. Rae1 {[%clk 00:44:48]} {[%emt 00:00:17]} Bc3 {[%clk
00:35:58]} {[%emt 00:01:27]} 22. Re8 {[%clk 00:43:21]} {[%emt 00:01:56]} Bd7
{[%clk 00:36:21]} {[%emt 00:00:07]} 23. Rxf8+ {[%clk 00:41:43]} {[%emt
00:02:09]} Rxf8 {[%clk 00:36:45]} {[%emt 00:00:06]} 24. Re7 {[%clk 00:38:19]}
{[%emt 00:03:54]} Rd8 {[%clk 00:36:21]} {[%emt 00:00:54]} 25. h3 {[%clk
00:16:38]} {[%emt 00:22:10]} b6 {[%clk 00:34:18]} {[%emt 00:02:34]} 26. Be6
{[%clk 00:12:29]} {[%emt 00:04:39]} Bc6 {[%clk 00:34:39]} {[%emt 00:00:09]} 27.
Bxf5 {[%clk 00:10:53]} {[%emt 00:02:06]} Bb4 {[%clk 00:33:13]} {[%emt
00:01:55]} 28. Be4 {[%clk 00:02:30]} {[%emt 00:08:54]} Bxe7 {[%clk 00:32:39]}
{[%emt 00:01:04]} 29. Bxc6 {[%clk 00:02:53]} {[%emt 00:00:07]} Rd1+ {[%clk
00:30:16]} {[%emt 00:02:53]} 30. Kh2 {[%clk 00:03:19]} {[%emt 00:00:03]} Rb1
{[%clk 00:29:58]} {[%emt 00:00:49]} 31. a4 {[%clk 00:01:34]} {[%emt 00:02:15]}
Rb2 {[%clk 00:30:11]} {[%emt 00:00:17]} 32. Be4 {[%clk 00:00:32]} {[%emt
00:01:32]} Ra2 {[%clk 00:30:34]} {[%emt 00:00:07]} 0-1